fUST/lending_fUST_20250530
["ID","MTS","AMOUNT","RATE_DAILY","PERIOD"]
[362977888,1748541046746,-2152.73,0.00023561,2]
[362977890,1748541046761,-2638.56,0.00023561,2]
[362977892,1748541046779,-4861.2,0.00023561,2]
[362977894,1748541046793,-6560.5,0.00023561,2]
[362977896,1748541046803,-3607.36,0.00023561,2]
[362977898,1748541046812,-1116.65,0.00023561,2]
[362977900,1748541046822,-5125.56,0.00023561,2]
[362977902,1748541046833,-1444.58,0.00023561,2]
[362977904,1748541046845,-5418.14,0.00023561,2]
[362977906,1748541046857,-1008.64906214,0.00023693,9]
[362977908,1748541046867,-430.0,0.00023835,2]
[362977910,1748541046876,-2188.1,0.00023835,2]
[362977912,1748541046886,-2731.33,0.00023835,2]
[362977914,1748541046896,-2240.96,0.00023835,2]
[362977915,1748541046907,-1786.22,0.00023835,2]
[362977917,1748541046916,-2518.93,0.00023835,2]
[362977921,1748541046926,-4214.92,0.00023835,2]
[362977923,1748541046936,-3359.93,0.00023835,2]
[362977925,1748541046946,-3428.03,0.00023835,2]
[362977927,1748541046955,-6849.93,0.00023835,2]
[362977929,1748541046965,-531.16,0.00023835,2]
[362977931,1748541046975,-4643.88,0.00023835,2]
[362977933,1748541046984,-1693.54,0.00023835,2]
[362977935,1748541046994,-2927.32,0.00023835,2]
[362977937,1748541047004,-1296.28,0.00023835,2]
[362977939,1748541047013,-6724.51,0.00023835,2]
[362977941,1748541047022,-3938.85,0.00023835,2]
[362977943,1748541047032,-5820.04,0.00023835,2]
[362977945,1748541047042,-902.69,0.00023835,2]
[362977947,1748541047051,-2152.73,0.00023835,2]
[362977949,1748541047061,-2638.56,0.00023835,2]
[362977951,1748541047070,-4861.2,0.00023835,2]
[362977953,1748541047079,-6560.5,0.00023835,2]
[362977955,1748541047088,-3607.36,0.00023835,2]
[362977957,1748541047098,-1116.65,0.00023835,2]
[362977959,1748541047108,-5125.56,0.00023835,2]
[362977961,1748541047118,-1444.58,0.00023835,2]
[362977963,1748541047127,-5418.14,0.00023835,2]
[362977965,1748541047137,-1008.64906214,0.00023866,10]
[362977967,1748541047147,-37872.93,0.000239,2]
[362977969,1748541047159,-378.35909204,0.000239,2]
[362977971,1748541047169,-104802.47385,0.00023999,2]
[362977973,1748541047179,-25890.68,0.00024,7]
[362977975,1748541047190,-229.26895353,0.00024,7]
[362977977,1748541047200,-160.0,0.00024,7]
[362977979,1748541047210,-1008.64906214,0.00024038,10]
[362977981,1748541047220,-566.47168239,0.00024074,2]
[362977983,1748541047230,-215.0738,0.00024091,2]
[362977985,1748541047240,-184.7025,0.00024109,2]
[362977987,1748541047250,-430.0,0.00024109,2]
[362977989,1748541047259,-2188.1,0.00024109,2]
[362977991,1748541047269,-2731.33,0.00024109,2]
[362977993,1748541047279,-2240.96,0.00024109,2]
[362977995,1748541047289,-1786.22,0.00024109,2]
[362977997,1748541047299,-2518.93,0.00024109,2]
[362977999,1748541047308,-4214.92,0.00024109,2]
[362978000,1748541047318,-3359.93,0.00024109,2]
[362978003,1748541047328,-3428.03,0.00024109,2]
[362978005,1748541047338,-6849.93,0.00024109,2]
[362978006,1748541047348,-531.16,0.00024109,2]
[362978009,1748541047358,-4643.88,0.00024109,2]
[362978011,1748541047368,-1693.54,0.00024109,2]
[362978012,1748541047377,-2927.32,0.00024109,2]
[362978014,1748541047388,-1296.28,0.00024109,2]
[362978016,1748541047398,-6724.51,0.00024109,2]
[362978018,1748541047410,-3938.85,0.00024109,2]
[362978020,1748541047420,-5820.04,0.00024109,2]
[362978023,1748541047430,-902.69,0.00024109,2]
[362978025,1748541047440,-2152.73,0.00024109,2]
[362978027,1748541047449,-2638.56,0.00024109,2]
[362978028,1748541047459,-4861.2,0.00024109,2]
[362978031,1748541047468,-6560.5,0.00024109,2]
[362978032,1748541047478,-3607.36,0.00024109,2]
[362978034,1748541047488,-1116.65,0.00024109,2]
[362978036,1748541047498,-5125.56,0.00024109,2]
[362978038,1748541047508,-1444.58,0.00024109,2]
[362978040,1748541047518,-5418.14,0.00024109,2]
[362978043,1748541047527,-1008.64906214,0.0002421,10]
[362978044,1748541047537,-566.47168239,0.00024321,2]
[362978046,1748541047548,-1008.64906214,0.00024383,11]
[362978049,1748541047558,-151.0,0.00024383,7]
[362978050,1748541047568,-151.0,0.00024383,7]
[362978052,1748541047578,-151.0,0.00024383,7]
[362978054,1748541047587,-430.0,0.00024383,2]
[362978056,1748541047597,-2188.1,0.00024383,2]
[362978058,1748541047606,-2731.33,0.00024383,2]
[362978060,1748541047615,-2240.96,0.00024383,2]
[362978062,1748541047625,-1786.22,0.00024383,2]
[362978064,1748541047634,-2518.93,0.00024383,2]
[362978066,1748541047644,-4214.92,0.00024383,2]
[362978068,1748541047656,-3359.93,0.00024383,2]
[362978070,1748541047665,-3428.03,0.00024383,2]
[362978072,1748541047675,-6849.93,0.00024383,2]
[362978074,1748541047685,-531.16,0.00024383,2]
[362978076,1748541047695,-4643.88,0.00024383,2]
[362978078,1748541047704,-1693.54,0.00024383,2]
[362978080,1748541047713,-2927.32,0.00024383,2]
[362978082,1748541047722,-1296.28,0.00024383,2]
[362978084,1748541047731,-6724.51,0.00024383,2]
[362978086,1748541047741,-3938.85,0.00024383,2]
[362978088,1748541047751,-5820.04,0.00024383,2]
[362978090,1748541047762,-902.69,0.00024383,2]
[362978092,1748541047771,-2152.73,0.00024383,2]
[362978094,1748541047781,-2638.56,0.00024383,2]
[362978096,1748541047791,-4861.2,0.00024383,2]
[362978098,1748541047800,-6560.5,0.00024383,2]
[362978100,1748541047809,-3607.36,0.00024383,2]
[362978102,1748541047818,-1116.65,0.00024383,2]
[362978104,1748541047829,-5125.56,0.00024383,2]
[362978106,1748541047839,-1444.58,0.00024383,2]
[362978108,1748541047848,-5418.14,0.00024383,2]
[362978110,1748541047858,-709.61,0.000244,7]
[362978112,1748541047868,-582.380394,0.000245,3]
[362978114,1748541047877,-5532.76,0.000245,2]
[362978116,1748541047886,-1008.64906214,0.00024555,11]
[362978118,1748541047896,-566.47168239,0.00024583,2]
[362978120,1748541047907,-281.34,0.000246,7]
[362978122,1748541047916,-369.405,0.00024657,3]
[362978124,1748541047926,-430.0,0.00024657,2]
[362978126,1748541047935,-2188.1,0.00024657,2]
[362978128,1748541047943,-2731.33,0.00024657,2]
[362978130,1748541047953,-2240.96,0.00024657,2]
[362978132,1748541047962,-1786.22,0.00024657,2]
[362978134,1748541047971,-2518.93,0.00024657,2]
[362978136,1748541047979,-4214.92,0.00024657,2]
[362978138,1748541047989,-3359.93,0.00024657,2]
[362978152,1748541048108,-3428.03,0.00024657,2]
[362978154,1748541048118,-6849.93,0.00024657,2]
[362978156,1748541048128,-531.16,0.00024657,2]
[362978158,1748541048137,-4643.88,0.00024657,2]
[362978160,1748541048147,-1693.54,0.00024657,2]
[362978162,1748541048159,-2927.32,0.00024657,2]
[362978164,1748541048168,-1296.28,0.00024657,2]
[362978166,1748541048179,-6724.51,0.00024657,2]
[362978168,1748541048188,-3938.85,0.00024657,2]
[362978170,1748541048197,-5820.04,0.00024657,2]
[362978172,1748541048207,-902.69,0.00024657,2]
[362978174,1748541048216,-2152.73,0.00024657,2]
[362978176,1748541048226,-2638.56,0.00024657,2]
[362978178,1748541048235,-4861.2,0.00024657,2]
[362978180,1748541048245,-6560.5,0.00024657,2]
[362978182,1748541048254,-3607.36,0.00024657,2]
[362978184,1748541048264,-1116.65,0.00024657,2]
[362978186,1748541048273,-5125.56,0.00024657,2]
[362978188,1748541048282,-1444.58,0.00024657,2]
[362978190,1748541048292,-5418.14,0.00024657,2]
[362978192,1748541048302,-200.0,0.00024658,15]
[362978194,1748541048312,-200.28375816,0.00024658,2]
[362978196,1748541048322,-160.0,0.000247,3]
[362978198,1748541048331,-160.0,0.000247,3]
[362978200,1748541048341,-12660.97845086,0.000247,30]
[362978202,1748541048351,-1008.64906214,0.00024728,11]
[362978204,1748541048360,-3442.39445,0.00024735,15]
[362978206,1748541048369,-87005.08184285,0.00024787,2]
[362978209,1748541048387,-4633.5420365,0.00024787,2]
[362978211,1748541048396,-3100.9498252,0.00024799,2]
[362978214,1748541048413,-3463.57,0.00021643,2]
[362978216,1748541048422,-27182.38160414,0.00024799,2]
[362978550,1748541051948,-24079.67158704,0.00024799,2]
[362978934,1748541055735,-9991.91209488,0.00024799,2]
[362978946,1748541055841,-430.0,0.00019178,2]
[362978948,1748541055850,-430.0,0.00019178,2]
[362978958,1748541055859,-349.5448371,0.00019178,2]
[362978960,1748541055958,-430.0,0.00019452,2]
[362978962,1748541055968,-430.0,0.00019452,2]
[362978964,1748541055978,-57.2304896,0.00019726,2]
[362978984,1748541056164,-430.0,0.00019178,2]
[362978986,1748541056174,-430.0,0.00019178,2]
[362978988,1748541056184,-430.0,0.00019178,2]
[362978990,1748541056193,-430.0,0.00019178,2]
[362978992,1748541056202,-2355.36514333,0.00019178,2]
[362978998,1748541056254,-20.00725093,0.00019178,2]
[362979026,1748541056535,-18.1526841,0.00019178,2]
[362979029,1748541056547,-41.30492164,0.00019178,2]
[362979031,1748541056556,-400.0,0.00019178,2]
[362979033,1748541056566,-141.64823045,0.00019178,2]
[362980161,1748541217838,324.1876282,0.00024657,120]
[362980162,1748541472402,208.78,0.00015966,2]
[362980163,1748541544382,201.19,0.00015827,2]
[362980164,1748541615090,214.05,0.00015795,2]
[362980165,1748541759070,221.36,0.00015784,2]
[362980168,1748541830333,213.31,0.00015889,2]
[362980169,1748541837557,810.768186,0.00013699,2]
[362980172,1748541910197,213.61,0.0001589,2]
[362980174,1748541932133,-320.41,0.00017214,2]
[362980175,1748541932157,-191.24080049,0.00018538,2]
[362980176,1748541953269,-235.96919951,0.00018538,2]
[362980177,1748541953291,-675.88417736,0.0001854,2]
[362980178,1748541980646,178.65,0.00015895,2]
[362980181,1748542028112,-225.47228895,0.0001722,2]
[362980182,1748542037079,-42.50771105,0.0001722,2]
[362980183,1748542037105,-269.3697868,0.0001854,2]
[362980184,1748542037128,-357.3,0.00018544,2]
[362980185,1748542037151,-208.42712899,0.00018728,2]
[362980186,1748542041112,-35.40287101,0.00018728,2]
[362980187,1748542041136,-300.0,0.00018737,2]
[362980188,1748542041158,-582.83320432,0.00018738,2]
[362980189,1748542047075,-1466.83025588,0.00018738,2]
[362980190,1748542051842,155.91,0.00015899,2]
[362980193,1748542104457,8423.11881797,0.00024658,120]
[362980194,1748542126113,165.39,0.00015898,2]
[362980196,1748542150087,-248.08,0.00017223,2]
[362980197,1748542161117,-330.78,0.00018548,2]
[362980198,1748542161141,-300.0,0.00018737,2]
[362980199,1748542161165,-1847.26184948,0.00018738,2]
[362980200,1748542166101,-878.74453256,0.00018738,2]
[362980201,1748542169177,-9901.96905626,0.00018738,2]
[362980202,1748542169198,-576.81303481,0.00018967,2]
[362980203,1748542169220,-188.56256344,0.00019077,2]
[362980204,1748542169241,-190.55856554,0.00019078,2]
[362980205,1748542169262,-388.74,0.00019168,3]
[362980206,1748542169283,-194.37,0.00019168,3]
[362980207,1748542169303,-583.12,0.00019168,3]
[362980208,1748542169324,-500.50871817,0.00019173,2]
[362980209,1748542169346,-500.0,0.00019173,2]
[362980210,1748542169367,-500.0,0.00019173,2]
[362980211,1748542169388,-428.01049102,0.00019173,2]
[362980212,1748542169407,-500.0,0.00019173,2]
[362980213,1748542169426,-500.0,0.00019173,2]
[362980214,1748542169446,-500.0,0.00019173,2]
[362980215,1748542169465,-322.03608124,0.00019173,2]
[362980216,1748542169484,-501.11294187,0.00019173,2]
[362980217,1748542169504,-500.0,0.00019173,2]
[362980218,1748542169524,-500.87138172,0.00019173,2]
[362980219,1748542169540,-500.98319267,0.00019173,2]
[362980220,1748542169556,-234.94638603,0.00019173,2]
[362980221,1748542169574,-500.0,0.00019173,2]
[362980222,1748542169595,-483.56738832,0.00019176,2]
[362980223,1748542169617,-500.0,0.00019176,2]
[362980224,1748542169638,-500.0,0.00019176,2]
[362980225,1748542169659,-444.5562318,0.00019176,2]
[362980226,1748542169680,-342.55145612,0.00019176,2]
[362980227,1748542169701,-500.0,0.00019177,2]
[362980228,1748542169723,-500.0,0.00019177,2]
[362980229,1748542169744,-338.14544333,0.00019177,2]
[362980230,1748542169767,-500.0,0.00019177,2]
[362980231,1748542169788,-500.0,0.00019177,2]
[362980232,1748542169809,-500.0,0.00019177,2]
[362980233,1748542169833,-500.0,0.00019177,2]
[362980234,1748542169856,-500.0,0.00019177,2]
[362980235,1748542169878,-500.0,0.00019177,2]
[362980236,1748542169899,-239.53754794,0.00019177,2]
[362980237,1748542169921,-500.0,0.00019177,2]
[362980238,1748542169943,-500.0,0.00019177,2]
[362980239,1748542169965,-500.0,0.00019177,2]
[362980240,1748542169987,-500.0,0.00019177,2]
[362980241,1748542170009,-500.0,0.00019177,2]
[362980242,1748542170034,-500.0,0.00019177,2]
[362980243,1748542170056,-500.0,0.00019177,2]
[362980244,1748542170077,-500.0,0.00019177,2]
[362980245,1748542170099,-379.26837323,0.00019177,2]
[362980246,1748542198105,216.51,0.00017993,2]
[362980256,1748542232671,-433.8591904,0.00018365,2]
[362980305,1748542235447,-2325.7334023,0.00018365,2]
[362980306,1748542235457,-227.95087154,0.00019078,2]
[362980307,1748542235467,-346.33854455,0.00019173,2]
[362980308,1748542235476,-300.0,0.00019176,2]
[362980309,1748542235485,-720.0,0.00019176,2]
[362980310,1748542235502,-120.73162677,0.00019177,2]
[362980311,1748542235516,-500.0,0.00019177,2]
[362980312,1748542235526,-500.0,0.00019177,2]
[362980313,1748542235536,-500.0,0.00019177,2]
[362980315,1748542235546,-500.0,0.00019177,2]
[362980316,1748542235555,-500.0,0.00019177,2]
[362980317,1748542235565,-643.40819364,0.00019177,2]
[362980318,1748542235575,-500.0,0.00019177,2]
[362980319,1748542235585,-628.36190073,0.00019177,2]
[362980320,1748542235595,-628.36190073,0.00019177,2]
[362980321,1748542235605,-628.36190073,0.00019177,2]
[362980322,1748542235614,-628.36190073,0.00019177,2]
[362980323,1748542235625,-628.36190073,0.00019177,2]
[362980324,1748542235636,-628.36190073,0.00019177,2]
[362980325,1748542235646,-628.36190073,0.00019177,2]
[362980326,1748542235656,-430.0,0.00019178,2]
[362980327,1748542235667,-400.0,0.00019178,2]
[362980328,1748542235676,-401.85261119,0.00019178,2]
[362980329,1748542235686,-430.0,0.00019178,2]
[362980330,1748542235697,-549.41424153,0.00019178,2]
[362980331,1748542235707,-430.0,0.00019178,2]
[362980332,1748542235716,-430.0,0.00019178,2]
[362980333,1748542235726,-430.0,0.00019178,2]
[362980334,1748542235735,-430.0,0.00019178,2]
[362980335,1748542235745,-430.0,0.00019178,2]
[362980336,1748542235754,-430.0,0.00019178,2]
[362980337,1748542235764,-430.0,0.00019178,2]
[362980338,1748542235944,-430.84346304,0.00019178,2]
[362980339,1748542235953,-430.0,0.00019178,2]
[362980340,1748542235963,-430.0,0.00019178,2]
[362980341,1748542235972,-500.0,0.00019178,2]
[362980342,1748542235982,-648.63146242,0.00019178,2]
[362980343,1748542235991,-500.0,0.00019178,2]
[362980344,1748542236000,-430.0,0.00019178,2]
[362980345,1748542236010,-450.0,0.00019178,2]
[362980346,1748542236020,-430.0,0.00019178,2]
[362980347,1748542236029,-450.0,0.00019178,2]
[362980348,1748542236039,-430.0,0.00019178,2]
[362980349,1748542236048,-430.0,0.00019178,2]
[362980351,1748542236057,-430.0,0.00019178,2]
[362980354,1748542236070,-430.0,0.00019178,2]
[362980356,1748542236080,-430.0,0.00019178,2]
[362980358,1748542236090,-250.0,0.00019178,2]
[362980360,1748542236100,-430.0,0.00019178,2]
[362980362,1748542236109,-430.0,0.00019178,2]
[362980363,1748542236118,-420.0,0.00019178,2]
[362980366,1748542236130,-450.39544778,0.00019178,2]
[362980368,1748542236139,-430.0,0.00019178,2]
[362980369,1748542236153,-370.0,0.00019178,2]
[362980370,1748542236162,-430.0,0.00019178,2]
[362980371,1748542236173,-430.0,0.00019178,2]
[362980372,1748542236183,-401.71574444,0.00019178,2]
[362980373,1748542236194,-430.0,0.00019178,2]
[362980374,1748542236204,-430.0,0.00019178,2]
[362980375,1748542236214,-430.0,0.00019178,2]
[362980376,1748542236225,-569.58137177,0.00019178,2]
[362980377,1748542236236,-430.0,0.00019178,2]
[362980378,1748542236247,-430.0,0.00019178,2]
[362980379,1748542236258,-1000.0,0.00019178,2]
[362980380,1748542236268,-430.0,0.00019178,2]
[362980381,1748542236277,-430.0,0.00019178,2]
[362980382,1748542236287,-430.0,0.00019178,2]
[362980383,1748542236296,-457.91108308,0.00019178,2]
[362980384,1748542236306,-430.0,0.00019178,2]
[362980385,1748542236316,-441.49245202,0.00019178,2]
[362980386,1748542236325,-430.0,0.00019178,2]
[362980387,1748542236335,-323.27982967,0.00019178,2]
[362980388,1748542236345,-430.0,0.00019178,2]
[362980389,1748542236355,-430.0,0.00019178,2]
[362980390,1748542236365,-430.0,0.00019178,2]
[362980391,1748542236374,-430.0,0.00019178,2]
[362980392,1748542236388,-400.0,0.00019178,2]
[362980393,1748542236398,-430.0,0.00019178,2]
[362980394,1748542236408,-500.0,0.00019178,2]
[362980395,1748542236417,-430.0,0.00019178,2]
[362980396,1748542236427,-430.0,0.00019178,2]
[362980397,1748542236436,-430.0,0.00019178,2]
[362980398,1748542236446,-430.71441826,0.00019178,2]
[362980399,1748542236456,-430.0,0.00019178,2]
[362980400,1748542236466,-452.28820013,0.00019178,2]
[362980401,1748542236476,-450.0,0.00019178,2]
[362980402,1748542236486,-430.0,0.00019178,2]
[362980403,1748542236496,-400.0,0.00019178,2]
[362980404,1748542236506,-430.0,0.00019178,2]
[362980405,1748542236516,-400.0,0.00019178,2]
[362980406,1748542236527,-430.0,0.00019178,2]
[362980407,1748542236537,-430.0,0.00019178,2]
[362980408,1748542236547,-430.0,0.00019178,2]
[362980409,1748542236557,-430.0,0.00019178,2]
[362980410,1748542236566,-430.0,0.00019178,2]
[362980411,1748542236576,-430.0,0.00019178,2]
[362980412,1748542236586,-430.0,0.00019178,2]
[362980413,1748542236595,-430.0,0.00019178,2]
[362980414,1748542236604,-430.0,0.00019178,2]
[362980415,1748542236613,-425.28642561,0.00019178,2]
[362980416,1748542236622,-430.0,0.00019178,2]
[362980417,1748542236633,-430.0,0.00019178,2]
[362980418,1748542236641,-430.0,0.00019178,2]
[362980419,1748542236649,-430.0,0.00019178,2]
[362980420,1748542236658,-430.0,0.00019178,2]
[362980421,1748542236667,-430.0,0.00019178,2]
[362980422,1748542236676,-430.0,0.00019178,2]
[362980423,1748542236685,-430.0,0.00019178,2]
[362980424,1748542236696,-430.0,0.00019178,2]
[362980425,1748542236706,-430.0,0.00019178,2]
[362980426,1748542236715,-400.0,0.00019178,2]
[362980427,1748542236725,-401.63623618,0.00019178,2]
[362980428,1748542236735,-430.0,0.00019178,2]
[362980429,1748542236744,-430.0,0.00019178,2]
[362980430,1748542236754,-431.18444022,0.00019178,2]
[362980431,1748542236764,-430.0,0.00019178,2]
[362980432,1748542236773,-430.0,0.00019178,2]
[362980433,1748542236783,-430.0,0.00019178,2]
[362980434,1748542236793,-430.0,0.00019178,2]
[362980435,1748542236804,-430.0,0.00019178,2]
[362980436,1748542236814,-430.0,0.00019178,2]
[362980437,1748542236824,-430.0,0.00019178,2]
[362980438,1748542236835,-430.0,0.00019178,2]
[362980439,1748542236845,-430.0,0.00019178,2]
[362980440,1748542236856,-430.0,0.00019178,2]
[362980441,1748542236865,-430.0,0.00019178,2]
[362980442,1748542236875,-430.0,0.00019178,2]
[362980443,1748542236886,-430.0,0.00019178,2]
[362980444,1748542236896,-430.0,0.00019178,2]
[362980445,1748542236906,-430.0,0.00019178,2]
[362980446,1748542236915,-503.38170601,0.00019178,2]
[362980447,1748542236925,-430.0,0.00019178,2]
[362980448,1748542236935,-430.0,0.00019178,2]
[362980449,1748542236944,-430.0,0.00019178,2]
[362980450,1748542236954,-181.60548251,0.00019178,2]
[362980451,1748542236964,-400.0,0.00019178,2]
[362980452,1748542236973,-500.0,0.00019178,2]
[362980453,1748542236983,-2106.58,0.00019178,2]
[362980454,1748542236993,-430.0,0.00019178,2]
[362980455,1748542237003,-450.0,0.00019178,2]
[362980456,1748542237013,-430.0,0.00019178,2]
[362980457,1748542237023,-454.57894625,0.00019178,2]
[362980458,1748542237033,-430.0,0.00019178,2]
[362980459,1748542237042,-401.37297953,0.00019178,2]
[362980460,1748542237052,-430.0,0.00019178,2]
[362980461,1748542237063,-1000.0,0.00019178,2]
[362980462,1748542237072,-430.0,0.00019178,2]
[362980463,1748542237082,-497.23957926,0.00019178,2]
[362980464,1748542237091,-430.0,0.00019178,2]
[362980465,1748542237101,-430.0,0.00019178,2]
[362980466,1748542237110,-430.0,0.00019178,2]
[362980467,1748542237119,-450.0,0.00019178,2]
[362980468,1748542237131,-430.0,0.00019178,2]
[362980469,1748542237141,-400.0,0.00019178,2]
[362980470,1748542237151,-430.0,0.00019178,2]
[362980471,1748542237166,-430.0,0.00019178,2]
[362980472,1748542237176,-430.0,0.00019178,2]
[362980473,1748542237186,-345.65621952,0.00019178,2]
[362980474,1748542237196,-430.0,0.00019178,2]
[362980475,1748542237206,-430.0,0.00019178,2]
[362980476,1748542237216,-430.0,0.00019178,2]
[362980477,1748542237226,-430.0,0.00019178,2]
[362980478,1748542237237,-430.0,0.00019178,2]
[362980479,1748542237247,-430.0,0.00019178,2]
[362980480,1748542237258,-430.0,0.00019178,2]
[362980481,1748542237267,-430.0,0.00019178,2]
[362980482,1748542237277,-450.0,0.00019178,2]
[362980483,1748542237287,-430.0,0.00019178,2]
[362980484,1748542237297,-430.0,0.00019178,2]
[362980485,1748542237307,-450.52192095,0.00019178,2]
[362980486,1748542237316,-430.0,0.00019178,2]
[362980487,1748542237327,-430.0,0.00019178,2]
[362980488,1748542237337,-430.0,0.00019178,2]
[362980489,1748542237358,-430.0,0.00019178,2]
[362980490,1748542237368,-430.0,0.00019178,2]
[362980491,1748542237378,-430.0,0.00019178,2]
[362980492,1748542237388,-430.0,0.00019178,2]
[362980493,1748542237398,-430.0,0.00019178,2]
[362980494,1748542237407,-430.0,0.00019178,2]
[362980495,1748542237416,-413.47130291,0.00019178,2]
[362980496,1748542237426,-430.0,0.00019178,2]
[362980497,1748542237435,-430.0,0.00019178,2]
[362980498,1748542237445,-430.0,0.00019178,2]
[362980499,1748542237454,-430.0,0.00019178,2]
[362980500,1748542237463,-430.0,0.00019178,2]
[362980501,1748542237473,-430.0,0.00019178,2]
[362980502,1748542237482,-401.14289384,0.00019178,2]
[362980503,1748542237492,-430.0,0.00019178,2]
[362980504,1748542237502,-430.0,0.00019178,2]
[362980505,1748542237511,-430.0,0.00019178,2]
[362980506,1748542237522,-430.0,0.00019178,2]
[362980507,1748542237532,-430.0,0.00019178,2]
[362980508,1748542237542,-430.0,0.00019178,2]
[362980509,1748542237552,-430.0,0.00019178,2]
[362980510,1748542237562,-430.0,0.00019178,2]
[362980511,1748542237571,-430.0,0.00019178,2]
[362980512,1748542237581,-430.0,0.00019178,2]
[362980513,1748542237591,-430.0,0.00019178,2]
[362980514,1748542237600,-430.0,0.00019178,2]
[362980515,1748542237610,-450.0,0.00019178,2]
[362980516,1748542237622,-430.0,0.00019178,2]
[362980517,1748542237632,-430.0,0.00019178,2]
[362980518,1748542237641,-430.0,0.00019178,2]
[362980519,1748542237651,-430.0,0.00019178,2]
[362980520,1748542237661,-430.0,0.00019178,2]
[362980521,1748542237671,-430.0,0.00019178,2]
[362980522,1748542237680,-430.0,0.00019178,2]
[362980523,1748542237693,-503.07908642,0.00019178,2]
[362980524,1748542237703,-430.0,0.00019178,2]
[362980525,1748542237712,-430.0,0.00019178,2]
[362980526,1748542237722,-430.0,0.00019178,2]
[362980527,1748542237732,-430.0,0.00019178,2]
[362980528,1748542237742,-419.34525243,0.00019178,2]
[362980529,1748542237752,-430.0,0.00019178,2]
[362980530,1748542237762,-430.0,0.00019178,2]
[362980531,1748542237771,-430.0,0.00019178,2]
[362980532,1748542237780,-430.0,0.00019178,2]
[362980533,1748542237789,-430.0,0.00019178,2]
[362980534,1748542237798,-430.0,0.00019178,2]
[362980535,1748542237807,-430.0,0.00019178,2]
[362980536,1748542237817,-430.0,0.00019178,2]
[362980537,1748542237826,-431.44833999,0.00019178,2]
[362980538,1748542237835,-430.0,0.00019178,2]
[362980539,1748542237845,-430.0,0.00019178,2]
[362980540,1748542237855,-430.0,0.00019178,2]
[362980541,1748542237865,-430.0,0.00019178,2]
[362980542,1748542237875,-430.0,0.00019178,2]
[362980543,1748542237886,-430.0,0.00019178,2]
[362980544,1748542237896,-350.67184516,0.00019178,2]
[362980545,1748542237905,-430.0,0.00019178,2]
[362980546,1748542237915,-430.0,0.00019178,2]
[362980547,1748542237924,-430.0,0.00019178,2]
[362980548,1748542237934,-430.0,0.00019178,2]
[362980549,1748542237944,-430.0,0.00019178,2]
[362980550,1748542237953,-430.0,0.00019178,2]
[362980551,1748542237963,-430.0,0.00019178,2]
[362980552,1748542237973,-430.0,0.00019178,2]
[362980553,1748542237983,-450.0,0.00019178,2]
[362980554,1748542237992,-430.0,0.00019178,2]
[362980555,1748542238002,-450.0,0.00019178,2]
[362980556,1748542238011,-430.0,0.00019178,2]
[362980557,1748542238021,-430.0,0.00019178,2]
[362980558,1748542238032,-430.0,0.00019178,2]
[362980559,1748542238046,-430.0,0.00019178,2]
[362980560,1748542238056,-430.0,0.00019178,2]
[362980561,1748542238066,-430.0,0.00019178,2]
[362980562,1748542238075,-430.0,0.00019178,2]